bitfinex/quotes_ETHUSD_20220212
["timestamp","ask_amount","ask_price","bid_price","bid_amount"]
[1644691927835,0.01942297,2974.9,2974.5,0.9829276]
[1644691928889,0.01942297,2974.9,2974.5,0.97348766]
[1644691929092,0.01942297,2974.9,2974.5,0.98303107]
[1644691930091,0.01942297,2974.9,2974.5,0.97348766]
[1644691930292,0.01942297,2974.9,2974.5,0.98303107]
[1644691931296,0.01942297,2974.9,2974.5,0.97348766]
[1644691931494,0.01942297,2974.9,2974.5,0.81502702]
[1644691932529,0.01942297,2974.9,2974.5,0.80548766]
[1644691932731,0.01942297,2974.9,2974.5,0.81502702]
[1644691933730,0.01942297,2974.9,2974.5,0.80548766]
[1644691933930,0.01942297,2974.9,2974.5,0.81502702]
[1644691934931,0.01942297,2974.9,2974.5,0.80548766]
[1644691935230,0.01942297,2974.9,2974.5,0.81502763]
[1644691935877,1.01942297,2974.9,2974.5,0.81502763]
[1644691936080,1.01942297,2974.9,2974.5,0.80548766]
[1644691936280,1.01942297,2974.9,2974.5,0.81502763]
[1644691937280,1.01942297,2974.9,2974.5,0.80548766]
[1644691937480,1.01942297,2974.9,2974.5,0.81502763]
[1644691938484,1.01942297,2974.9,2974.5,0.80548766]
[1644691938683,1.01942297,2974.9,2974.5,0.81502756]
[1644691939728,1.01942297,2974.9,2974.5,0.80548766]
[1644691939929,1.01942297,2974.9,2974.5,0.81502756]
[1644691940835,1.01942297,2974.9,2974.5,0.80548766]
[1644691941037,1.01942297,2974.9,2974.5,0.81502756]
[1644691942038,1.01942297,2974.9,2974.5,0.80548766]
[1644691942236,1.01942297,2974.9,2974.5,0.81502757]
[1644691943237,1.01942297,2974.9,2974.5,0.80548766]
[1644691943477,1.43001927,2974.8,2974.5,0.81502757]
[1644691944383,1.43001927,2974.8,2974.5,0.80548766]
[1644691944780,1.43001927,2974.8,2974.5,0.8150275]
[1644691945480,1.01942297,2974.9,2974.5,0.8150275]
[1644691945681,1.01942297,2974.9,2974.5,0.80548766]
[1644691945881,1.01942297,2974.9,2974.5,0.8150275]
[1644691945882,1.42999694,2974.8,2974.5,0.8150275]
[1644691946082,1.01942297,2974.9,2974.5,0.8150275]
[1644691946285,1.43000169,2974.8,2974.5,0.8150275]
[1644691946783,1.43000169,2974.8,2974.5,0.80548766]
[1644691947230,1.43000169,2974.8,2974.5,0.8150275]
[1644691948026,1.43000169,2974.8,2974.2,4.2229]
[1644691948233,1.43000169,2974.8,2974.5,0.00953984]
[1644691949234,1.43000169,2974.8,2974.1,0.168]
[1644691949434,1.43000169,2974.8,2974.5,0.00953984]
[1644691950034,1.42884937,2974.8,2974.5,0.00953984]
[1644691950436,1.42884937,2974.8,2974.1,0.168]
[1644691950634,1.01942297,2974.9,2974.5,0.00953984]
[1644691950882,1.01942297,2974.9,2974.5,3.7588549]
[1644691951490,1.01942297,2974.9,2974.6,0.485]
[1644691953086,1.01942297,2974.9,2974.6,1.32534]
[1644691954736,1.01942297,2974.9,2974.6,0.485]
[1644691958681,1.01942297,2974.9,2974.5,0.00954008]
[1644691958884,1.01942297,2974.9,2974.4,0.72810674]
[1644691960390,1.01942297,2974.9,2974.5,0.00954579]
[1644691961189,1.01942297,2974.9,2974.4,0.72810674]
[1644691961592,1.01942297,2974.9,2974.5,0.00899358]
[1644691962533,1.01942297,2974.9,2974.4,0.72810674]
[1644691962735,1.01942297,2974.9,2974.5,0.00899358]
[1644691963632,1.01942297,2974.9,2974.4,0.72810674]
[1644691963831,1.01942297,2974.9,2974.5,0.00901203]
[1644691964832,1.01942297,2974.9,2974.3,0.84043]
[1644691965033,1.01942297,2974.9,2974.3,1.32543]
[1644691965336,1.01942297,2974.9,2974.5,0.00901203]
[1644691965986,1.01942297,2974.9,2974.3,1.32543]
[1644691966189,1.01942297,2974.9,2974.6,0.73932408]
[1644691966985,1.01942297,2974.9,2974.5,0.00904788]
[1644691967188,1.01942297,2974.9,2974.3,0.485]
[1644691967589,1.01942297,2974.9,2974.5,0.00904606]
[1644691968386,1.01942297,2974.9,2974.3,1.54655682]
[1644691968788,1.01942297,2974.9,2974.5,0.009046]
[1644691969643,1.01942297,2974.9,2974.1,1.2093]
[1644691969841,1.01942297,2974.9,2974.0,0.168]
[1644691969842,2.00242297,2974.9,2974.5,0.00904372]
[1644691970044,3.668,2974.8,2974.5,0.00904372]
[1644691970242,6.43029687,2974.7,2974.5,0.00904372]
[1644691970442,0.74621279,2973.9,2973.7,0.25]
[1644691970648,0.74621279,2973.9,2973.1,0.00344334]
[1644691972346,3.29166666,2973.8,2972.9,0.00344334]
[1644691972544,0.74621279,2973.9,2972.9,0.00344334]
[1644691973986,3.94085862,2974.3,2972.9,0.00344334]
[1644691974186,3.94085862,2974.3,2972.9,0.17154334]
[1644691974385,3.94085862,2974.3,2973.2,0.84074]
[1644691974588,3.77275862,2974.3,2973.2,0.84074]
[1644691974887,3.77275862,2974.3,2973.5,0.01013331]
[1644691975287,3.14191331,2974.3,2973.5,0.01013331]
[1644691975690,3.14191331,2974.3,2973.8,0.71599688]
[1644691975888,5.19378744,2974.4,2973.8,0.7261296]
[1644691975889,0.01808744,2974.4,2973.8,0.7261296]
[1644691976788,0.01808744,2974.4,2973.8,0.71599688]
[1644691977236,0.01808744,2974.4,2974.0,0.01013233]
[1644691978136,0.01808744,2974.4,2973.4,3.1716]
[1644691978344,0.01808744,2974.4,2974.1,0.01013214]
[1644691978739,0.67858223,2974.2,2974.1,0.01013214]
[1644691978941,4.04624846,2974.2,2974.1,0.01013214]
[1644691979140,3.93153621,2974.2,2974.1,0.01013214]
[1644691979340,3.93153621,2974.2,2973.4,3.78313175]
[1644691979341,3.93103321,2974.2,2973.4,3.78313175]
[1644691979542,3.13420615,2974.1,2974.0,0.01013224]
[1644691979741,0.67858223,2974.2,2974.0,0.01013224]
[1644691979940,3.17374262,2974.1,2974.0,0.01013224]
[1644691980541,3.17374262,2974.1,2973.1,5.63131334]
[1644691980741,3.17374262,2974.1,2973.9,0.01013243]
[1644691980985,3.13030785,2974.1,2973.9,0.01013243]
[1644691981584,3.13030785,2974.1,2973.1,5.46321334]
[1644691981784,3.13030785,2974.1,2973.3,0.81775557]
[1644691981984,3.13030785,2974.1,2973.9,0.01013253]
[1644691982885,0.1681,2974.3,2973.3,0.81775557]
[1644691983087,0.1681,2974.3,2973.9,0.01013253]
[1644691984088,0.1681,2974.3,2973.3,1.95836557]
[1644691984289,0.01808744,2974.4,2974.0,0.01013233]
[1644691985328,0.01808744,2974.4,2973.4,0.1681]
[1644691985530,0.01808744,2974.4,2974.1,0.01013214]
[1644691986536,0.01808744,2974.4,2973.5,0.84064]
[1644691986734,0.01808744,2974.4,2974.1,0.01013204]
[1644691987836,0.01808744,2974.4,2973.8,0.86803333]
[1644691988035,0.01808744,2974.4,2974.1,0.01013204]
[1644691988983,0.01808744,2974.4,2973.5,0.84064]
[1644691989184,0.01808744,2974.4,2974.1,0.01013204]
[1644691990186,0.01808744,2974.4,2973.7,0.70337389]
[1644691990388,0.01808744,2974.4,2974.1,0.01013204]
[1644691991388,0.01808744,2974.4,2973.7,0.70337389]
[1644691991588,0.73301133,2974.5,2974.1,0.01013204]
[1644691992440,3.1067647,2974.4,2973.7,0.70337389]
[1644691992638,0.73301133,2974.5,2973.6,0.1681]
[1644691992836,0.73301133,2974.5,2974.2,0.01013194]
[1644691993639,0.73301133,2974.5,2973.6,0.1681]
[1644691993842,0.73301133,2974.5,2973.6,0.98147019]
[1644691994040,0.73301133,2974.5,2974.2,0.01013184]
[1644691994639,1.2161,2974.6,2974.2,0.01013184]
[1644691994940,1.2161,2974.6,2973.6,0.98147019]
[1644691995143,4.3309112,2974.6,2974.2,0.01013184]
[1644691995985,0.84484403,2974.4,2974.2,0.01013184]
[1644691996186,0.84484403,2974.4,2973.6,1.98147019]
[1644691996490,0.79484403,2974.4,2974.3,0.01013175]
[1644691997290,0.79484403,2974.4,2973.6,0.98147019]
[1644691997489,0.79484403,2974.4,2974.2,0.01013184]
[1644691998490,0.79484403,2974.4,2973.6,0.1681]
[1644692001144,0.79484403,2974.4,2973.9,0.01012625]
[1644692001342,1.2161,2974.6,2973.9,0.01012625]
[1644692001544,3.9329,2974.8,2973.9,0.01012625]
[1644692001545,3.9329,2974.8,2973.9,1.33565625]
[1644692001745,3.9329,2974.8,2973.9,1.63565625]
[1644692001941,3.9329,2974.8,2974.0,0.1681]
[1644692002141,3.9329,2974.8,2974.1,0.485]
[1644692002342,1.01012323,2974.9,2974.2,0.9708367]
[1644692002542,1.01012323,2974.9,2974.2,1.4558367]
[1644692003384,1.0,2974.9,2974.2,3.12637113]
[1644692003586,1.01012352,2974.9,2974.4,0.01012535]
[1644692004591,1.0,2974.9,2974.2,3.12637113]
[1644692004791,1.01012367,2974.9,2974.4,0.01012549]
[1644692005793,1.0,2974.9,2974.2,3.72637113]
[1644692006096,0.168,2975.6,2974.6,7.0]
[1644692006394,0.85047137,2976.4,2974.6,7.0]
[1644692006395,0.63785353,2976.4,2974.9,7.0]
[1644692006595,1.42973945,2976.3,2975.1,6.065]
[1644692006796,0.63785353,2976.5,2975.1,6.065]
[1644692006797,0.63785353,2976.5,2976.4,0.70405339]
[1644692006998,1.42964682,2976.5,2976.2,1.94230679]
[1644692007255,1.42964682,2976.4,2976.3,0.83981]
[1644692007454,1.42964682,2976.4,2976.1,0.2732]
[1644692007658,1.42964682,2976.3,2976.1,0.2732]
[1644692007857,0.63785353,2976.7,2976.1,0.2732]
[1644692007858,1.42964682,2976.2,2976.1,0.2732]
[1644692008057,1.42964682,2976.6,2975.8,0.485]
[1644692008257,1.42964682,2976.5,2975.8,0.485]
[1644692008460,1.42964682,2976.4,2975.8,0.485]
[1644692008859,1.42964682,2976.3,2975.9,0.83989]
[1644692009063,0.63785353,2977.0,2975.9,0.83989]
[1644692009261,0.1678,2976.9,2975.9,0.83989]
[1644692009465,1.42951345,2976.8,2975.8,0.485]
[1644692009667,0.75076354,2976.6,2975.8,0.485]
[1644692009863,1.42951345,2976.5,2975.8,0.485]
[1644692010892,0.01015241,2976.3,2975.8,0.485]
[1644692011092,1.42951345,2976.2,2975.8,0.485]
[1644692011297,1.42951345,2976.2,2975.9,0.83992]
[1644692011498,0.01015241,2976.3,2975.9,1.91802]
[1644692011698,9.23015353,2977.2,2976.0,0.485]
[1644692011896,9.23015353,2977.2,2976.2,1.6796]
[1644692011897,1.42943902,2977.1,2976.2,1.6796]
[1644692012096,1.42943902,2977.1,2976.2,2.1646]
[1644692012097,1.37004336,2977.1,2976.2,2.1646]
[1644692012300,1.37004336,2977.1,2976.5,0.7285844]
[1644692012700,0.1678,2977.3,2976.5,0.7285844]
[1644692014299,0.1678,2977.3,2976.3,0.8398]
[1644692014500,0.1678,2977.3,2976.2,3.3555]
[1644692014740,0.1678,2977.3,2976.2,3.6555]
[1644692014942,0.1678,2977.3,2976.2,3.3555]
[1644692015340,0.1678,2977.3,2976.3,0.85011206]
[1644692015640,0.01015123,2976.9,2976.5,0.01015275]
[1644692015840,0.01015123,2976.9,2976.6,0.83977]
[1644692016442,0.01015123,2976.9,2976.5,0.01015275]
[1644692016644,0.1678,2977.3,2976.2,3.3555]
[1644692016843,0.1678,2977.3,2976.5,0.01015275]
[1644692016844,0.01015123,2976.9,2976.5,0.01015275]
[1644692017044,0.01015123,2976.9,2976.5,0.84994275]
[1644692017243,0.01015123,2976.9,2976.5,1.14994275]
[1644692017451,0.01015123,2976.9,2976.5,0.84994275]
[1644692017645,0.1678,2977.3,2976.3,0.8437193]
[1644692018044,0.01015132,2976.8,2976.5,0.01015268]
[1644692018890,0.1678,2977.3,2976.4,0.01843459]
[1644692019292,0.01015142,2976.8,2976.5,0.01015261]
[1644692019694,0.12795142,2977.3,2976.5,0.01015261]
[1644692020097,0.12795142,2977.3,2976.4,0.01843459]
[1644692021494,4.15269649,2977.4,2976.4,0.01843459]
[1644692021694,3.98489649,2977.4,2976.4,0.01843459]
[1644692022759,3.98489649,2977.4,2976.6,0.00590625]
[1644692022953,0.1678,2977.3,2976.6,0.00590625]
[1644692023455,0.1678,2977.3,2976.7,0.01835455]
[1644692023655,3.98489649,2977.4,2976.7,0.01835455]
[1644692024055,0.01015083,2977.1,2976.7,0.01835455]
[1644692024862,0.1678,2977.5,2976.8,0.1678]
[1644692025263,0.1678,2977.5,2976.9,0.485]
[1644692025459,0.0678,2977.5,2976.9,0.385]
[1644692025659,0.0678,2977.5,2977.1,0.84520874]
[1644692025887,0.0678,2977.5,2977.2,0.58498]
[1644692026092,0.0678,2977.5,2977.2,0.485]
[1644692026297,0.0678,2977.5,2977.3,0.1678]
[1644692026494,0.0678,2977.5,2977.2,0.485]
[1644692026697,0.0678,2977.5,2977.2,1.3246]
[1644692026898,0.0678,2977.5,2977.2,1.4924]
[1644692027397,0.0678,2977.5,2977.2,2.37740098]
[1644692027600,0.0678,2977.5,2977.2,4.28374648]
[1644692027801,0.0678,2977.5,2977.2,4.32381861]
[1644692027997,0.0678,2977.5,2977.2,0.6528]
[1644692028199,0.0678,2977.5,2977.2,4.33664389]
[1644692028398,0.0678,2977.5,2977.3,0.83953]
[1644692028799,0.07744805,2977.5,2977.3,0.83953]
[1644692029636,0.07744805,2977.5,2977.2,1.42723109]
[1644692029841,0.0678,2977.5,2977.2,1.42723109]
[1644692030045,0.07744796,2977.5,2977.2,1.42723109]
[1644692030250,0.03858605,2978.0,2977.2,1.42723109]
[1644692030252,0.06741463,2978.2,2977.3,7.0]
[1644692030450,0.06741463,2978.2,2977.4,4.89232]
[1644692030647,0.0010146,2978.7,2977.9,6.065]
[1644692030847,0.0010146,2978.7,2978.0,21.26278]
[1644692031046,0.0010146,2978.7,2978.1,7.0]
[1644692031246,0.0010146,2978.7,2978.2,0.55276]
[1644692031547,0.0010146,2978.7,2978.2,1.85276]
[1644692031846,0.0010146,2978.7,2978.2,0.3]
[1644692032048,0.54586813,2979.6,2978.2,7.0]
[1644692032247,5.1314,2979.7,2978.4,19.71]
[1644692032248,1.42847582,2979.5,2978.4,19.71]
[1644692032447,1.42847582,2979.4,2978.5,1.485]
[1644692032650,5.1314,2979.7,2978.6,0.485]
[1644692032651,1.42847582,2979.3,2978.6,0.485]
[1644692032847,1.42847582,2979.2,2978.3,1.00698]
[1644692033051,1.42847582,2979.6,2978.4,0.485]
[1644692033247,1.42847582,2979.5,2978.7,0.88423276]
[1644692033508,0.1678,2980.0,2978.7,2.02330276]
[1644692033710,0.04060826,2979.3,2978.9,7.0]
[1644692033908,1.3868,2980.7,2979.0,9.7915]
[1644692034108,1.20935807,2980.7,2979.1,6.75]
[1644692034308,1.20935807,2980.7,2979.9,0.67193677]
[1644692034509,0.74827247,2980.8,2979.4,0.485]
[1644692034807,10.85047137,2981.0,2979.7,0.83888]
[1644692034808,1.1559,2980.9,2979.7,0.83888]
[1644692035208,10.1676,2981.0,2979.8,0.485]
[1644692035808,10.1676,2981.0,2980.1,0.83877]
[1644692036007,10.1676,2981.0,2980.1,0.485]
[1644692036209,10.1676,2981.0,2979.7,3.00082]
[1644692036609,10.1676,2981.0,2979.8,3.5]
[1644692036811,10.1676,2981.0,2979.9,21.20925186]
[1644692036812,10.0,2981.0,2979.9,21.20925186]
[1644692037009,10.0,2981.0,2980.2,0.83853]
[1644692037246,5.33600284,2981.3,2980.2,0.83853]
[1644692037247,10.0,2981.2,2980.2,0.485]
[1644692037449,0.1676,2980.9,2979.8,0.485]
[1644692037646,0.87210646,2980.6,2979.7,0.80062349]
[1644692037946,0.87210646,2980.6,2979.5,0.1676]
[1644692037947,0.87210646,2980.6,2979.6,0.01649369]
[1644692038648,0.01014774,2980.3,2979.6,0.01649369]
[1644692039448,0.87210646,2980.6,2979.6,0.01649369]
[1644692039650,0.01014814,2980.1,2979.6,0.01649369]
[1644692040450,0.20818646,2980.5,2979.6,0.01649369]
[1644692040451,0.1683346,2980.5,2979.6,0.01649369]
[1644692040653,3.17124999,2980.5,2979.6,0.01649369]
[1644692040890,0.00419088,2980.0,2979.6,0.01649369]
[1644692041694,0.73486034,2979.9,2979.6,0.01649369]
[1644692041894,0.73486034,2979.9,2979.3,0.25]
[1644692041895,0.03298737,2979.5,2979.3,0.25]
[1644692042096,0.67044811,2979.4,2979.1,3.0265]
[1644692042294,0.03298737,2979.5,2979.1,3.0265]
[1644692043100,0.1678,2979.4,2979.1,3.0265]
[1644692043302,0.03298737,2979.5,2979.2,0.01018465]
[1644692043499,0.1678,2979.4,2979.2,0.01018465]
[1644692044098,0.1678,2979.4,2978.4,0.25]
[1644692044301,0.03298737,2979.5,2978.4,0.25]
[1644692044498,0.03298737,2979.5,2978.2,0.1678]
[1644692044499,0.03298737,2979.5,2979.2,0.01018465]
[1644692044748,3.27252254,2979.8,2979.2,0.01018465]
[1644692044951,0.1678,2979.7,2979.2,0.01018465]
[1644692045249,0.85122898,2979.6,2979.2,0.01018465]
[1644692045450,0.1678,2979.5,2978.1,0.75462082]
[1644692045649,2.61902898,2979.4,2979.3,0.01018435]
[1644692045852,0.485,2979.5,2979.3,0.01018435]
[1644692046051,0.1678,2979.4,2979.3,0.01018435]
[1644692046651,0.85152692,2979.4,2978.3,0.74671274]
[1644692046952,0.68372692,2979.4,2979.2,0.00953855]
[1644692047351,0.1678,2979.3,2979.2,0.00953855]
[1644692047754,7.21572747,2979.3,2978.3,0.25]
[1644692047955,7.21572747,2979.3,2977.4,0.1678]
[1644692047956,0.65817866,2979.1,2977.4,0.1678]
[1644692048152,2.61902898,2978.8,2977.1,0.1678]
[1644692048417,5.29905905,2978.7,2977.0,0.1678]
[1644692048617,7.75028803,2978.7,2977.0,0.1678]
[1644692048818,0.77184487,2978.0,2977.3,0.76532958]
[1644692049016,4.00474957,2978.6,2977.4,0.1678]
[1644692049217,0.1678,2978.6,2977.4,0.1678]
[1644692049420,2.61902898,2978.4,2977.4,0.1678]
[1644692049619,0.1678,2978.3,2977.4,0.1678]
[1644692050020,0.485,2978.2,2977.4,0.1678]
[1644692050219,0.1678,2978.1,2977.4,0.1678]
[1644692050421,0.485,2978.0,2977.7,0.00543543]
[1644692051422,0.485,2978.0,2977.4,0.1678]
[1644692051423,0.6528,2978.0,2977.4,0.1678]
[1644692051622,0.6528,2978.0,2977.7,0.00959204]
[1644692051822,0.35478408,2977.0,2976.9,0.25]
[1644692052020,3.63880306,2977.0,2976.4,0.03838506]
[1644692052247,0.35478408,2977.0,2976.4,0.03838506]
[1644692052448,3.31101332,2976.9,2976.4,0.03838506]
[1644692052647,3.31101332,2976.9,2976.1,2.38097102]
[1644692053749,3.31101332,2976.9,2976.2,0.76301869]
[1644692054052,3.31101332,2976.9,2976.4,0.0054277]
[1644692054951,3.31101332,2976.9,2976.2,0.76301869]
[1644692055154,3.15085158,2976.9,2976.3,0.1678]
[1644692055354,3.15453586,2976.9,2976.5,0.00542743]
[1644692055552,0.35478408,2977.0,2976.5,0.00542743]
[1644692055752,0.35478408,2977.0,2976.2,0.71844612]
[1644692056019,0.35478408,2977.0,2976.2,3.09941714]
[1644692056223,3.90061028,2976.9,2976.2,0.71844612]
[1644692057122,3.90061028,2976.9,2976.1,0.1678]
[1644692057321,3.90061028,2976.9,2975.9,2.38097102]
[1644692057520,3.22293018,2976.9,2976.0,0.1678]
[1644692057720,3.22293018,2976.9,2976.4,0.00555842]
[1644692057921,0.35478408,2977.0,2976.4,0.00555842]
[1644692058522,0.35478408,2977.0,2976.4,0.67732085]
[1644692059324,0.35478408,2977.0,2976.5,2.38097102]
[1644692059526,3.13629518,2976.9,2976.4,0.67732085]
[1644692059747,0.35478408,2977.0,2976.4,0.67732085]
[1644692060348,3.11593107,2976.9,2976.4,0.67732085]
[1644692060552,0.35478408,2977.0,2976.4,0.67732085]
[1644692060950,3.14240067,2976.9,2976.4,0.67732085]
[1644692061353,3.16019417,2976.9,2976.4,0.68750773]
[1644692062151,3.16019417,2976.9,2976.4,0.67732085]
[1644692062350,3.16019417,2976.9,2976.4,0.68750766]
[1644692062551,0.35478408,2977.0,2976.4,0.68750766]
[1644692063392,3.11554621,2976.9,2976.4,0.67732085]
[1644692063598,0.35478408,2977.0,2976.4,0.68750773]
[1644692063797,3.11962204,2976.9,2976.4,0.68750773]
[1644692064001,0.35478408,2977.0,2976.4,0.68750773]
[1644692064199,3.15517627,2976.9,2976.4,0.68750773]
[1644692064398,3.13467837,2976.9,2976.4,0.68750773]
[1644692064601,3.13467837,2976.9,2976.4,0.67732085]
[1644692064799,3.13467837,2976.9,2976.4,0.68750766]
[1644692065000,0.35478408,2977.0,2976.4,0.68750766]
[1644692065198,3.11637418,2976.9,2976.4,0.68750766]
[1644692065399,3.12289473,2976.9,2976.4,0.68750766]
[1644692065603,0.35478408,2977.0,2976.4,0.68750766]
[1644692065800,0.35478408,2977.0,2976.4,0.67732085]
[1644692066001,0.35478408,2977.0,2976.4,0.68750766]
[1644692066202,0.35478408,2977.0,2976.5,2.38097102]
[1644692066402,0.35478408,2977.0,2976.4,0.68750766]
[1644692067003,0.35478408,2977.0,2976.4,0.67732085]
[1644692067244,0.35478408,2977.0,2976.4,0.68750773]
[1644692068245,0.35478408,2977.0,2976.4,0.67732085]
[1644692068447,0.35478408,2977.0,2976.8,2.38097102]
[1644692068947,0.35478408,2977.0,2976.9,0.71769907]
[1644692071914,0.35478408,2977.0,2976.9,0.88549907]
[1644692073109,0.35478408,2977.0,2976.6,2.38097102]
[1644692073808,0.30478408,2977.0,2976.6,2.38097102]
[1644692075763,0.30478408,2977.0,2976.4,0.01018702]
[1644692076560,0.30478408,2977.0,2976.1,0.1678]
[1644692076759,0.75685912,2976.8,2976.1,0.1678]
[1644692076965,3.25471624,2976.7,2976.4,0.01018688]
[1644692077765,3.25471624,2976.7,2976.1,0.1678]
[1644692077964,3.25471624,2976.7,2976.0,0.82640649]
[1644692078171,3.25471624,2976.7,2976.4,0.01018667]
[1644692079023,3.9960575,2977.0,2976.0,0.82640649]
[1644692079223,3.9960575,2977.0,2976.4,0.01018667]
[1644692079826,4.65737241,2977.0,2976.4,0.01018667]
[1644692080224,4.65737241,2977.0,2976.0,3.20737751]
[1644692080624,4.65737241,2977.0,2976.4,0.01018688]
[1644692081428,4.65737241,2977.0,2976.0,0.82640649]
[1644692081629,4.65737241,2977.0,2976.4,0.01018688]
[1644692082647,4.65737241,2977.0,2976.0,0.82640649]
[1644692082849,4.65737241,2977.0,2976.4,0.01018688]
[1644692083849,3.9960575,2977.0,2976.2,2.38097102]
[1644692084049,3.9960575,2977.0,2976.4,0.01018688]
[1644692084449,0.30478408,2977.0,2976.4,0.01018688]
[1644692084851,3.73466212,2977.0,2976.4,0.01018688]
[1644692085047,3.73466212,2977.0,2976.0,0.82640649]
[1644692085248,0.79879417,2976.9,2976.4,0.01018688]
[1644692086293,0.79879417,2976.9,2976.0,0.82640649]
[1644692086494,0.79879417,2976.9,2976.4,0.01018681]
[1644692087501,0.30478408,2977.0,2976.0,0.82640649]
[1644692087698,1.42924827,2976.9,2976.4,0.01018681]
[1644692088101,1.42924827,2976.9,2976.4,0.00636112]
[1644692088598,1.42924827,2976.9,2976.0,0.82640649]
[1644692090256,1.42924827,2976.9,2976.5,0.86550628]
[1644692090654,1.42924827,2976.9,2976.6,2.38097102]
[1644692090855,0.47258408,2977.0,2976.7,2.38097102]
[1644692091053,0.47258408,2977.0,2976.6,0.1678]
[1644692092854,0.47258408,2977.0,2976.7,2.38097102]
[1644692093511,1.42909675,2976.9,2976.6,0.1678]
[1644692094514,0.66966618,2976.7,2976.3,0.01018066]
[1644692094712,0.66966618,2976.7,2976.2,0.02613793]
[1644692094713,1.42909675,2976.6,2976.2,0.02613793]
[1644692094912,1.42909675,2976.6,2976.3,0.01018052]
[1644692095914,1.42909675,2976.6,2976.2,0.02613793]
[1644692096114,1.42909675,2976.6,2976.3,0.0101801]
[1644692096316,0.80576678,2977.0,2976.4,2.38097102]
[1644692096616,1.42921715,2976.9,2976.4,2.38097102]
[1644692096916,1.42921715,2976.9,2975.5,3.42193892]
[1644692096917,2.55,2976.8,2975.5,3.42193892]
[1644692097149,1.42921715,2976.7,2976.1,0.1679]
[1644692097354,1.42921715,2976.7,2975.6,0.168]
[1644692097558,1.42921715,2976.6,2976.0,0.83814013]
[1644692097756,0.82412231,2976.8,2976.1,0.1678]
[1644692097958,1.42921707,2976.7,2976.1,0.1678]
[1644692098557,0.00421563,2976.5,2976.1,0.1678]
[1644692099560,0.82412231,2976.8,2976.1,0.1678]
[1644692099762,0.01017922,2976.4,2976.1,0.1678]
[1644692100760,0.82412231,2976.8,2976.1,0.1678]
[1644692101007,0.01017932,2976.4,2975.5,3.11492149]
[1644692101202,1.42924955,2976.3,2975.5,3.11492149]
[1644692101408,1.42924955,2976.3,2975.5,0.17798257]
[1644692101803,1.42924955,2976.3,2975.5,0.1678]
[1644692102005,1.42924955,2976.5,2975.5,0.1678]
[1644692102206,0.01018003,2976.0,2975.5,0.17798207]
[1644692103107,0.02607668,2976.1,2975.5,0.17798207]
[1644692103108,0.02607668,2976.1,2975.5,0.1678]
[1644692103303,0.01018033,2975.9,2975.5,0.01018186]
[1644692104203,0.168,2976.5,2975.3,0.80673633]
[1644692104404,1.42947151,2976.4,2975.3,0.80673633]
[1644692104654,0.01018043,2975.8,2975.5,0.01018179]
[1644692105458,0.63459328,2976.3,2975.3,0.80673633]
[1644692105660,0.01018053,2975.8,2975.5,0.01018172]
[1644692106757,0.63459328,2976.3,2975.3,0.80673633]
[1644692106959,0.01018053,2975.8,2975.5,0.01018172]
[1644692107958,0.63459328,2976.3,2975.3,0.80673633]
[1644692108161,0.01018053,2975.8,2975.5,0.01018172]
[1644692108997,0.63459328,2976.3,2975.3,0.80673633]
[1644692109198,1.42946767,2976.2,2975.3,0.80673633]
[1644692109399,0.01018053,2975.8,2975.5,0.01018172]
[1644692110304,0.79348289,2975.8,2975.1,0.168]
[1644692110508,0.80366342,2975.8,2975.5,0.01018172]
[1644692110907,0.168,2975.7,2975.5,0.01018172]
[1644692111508,4.0177637,2975.7,2974.4,0.168]
[1644692111708,1.91480609,2975.6,2975.5,0.01018164]
[1644692111910,2.08280609,2975.6,2975.5,0.01018164]
[1644692112775,2.08280609,2975.6,2974.4,0.168]
[1644692112976,2.08280609,2975.6,2974.3,0.25]
[1644692112977,0.168,2975.5,2975.4,0.01018175]
[1644692113176,0.653,2975.5,2975.4,0.01018175]
[1644692113379,0.485,2975.5,2975.4,0.01018175]
[1644692113577,0.653,2975.5,2975.4,0.01018175]
[1644692113979,0.89482852,2975.0,2974.4,0.68083405]
[1644692114179,0.168,2975.4,2974.7,0.04073591]
[1644692115179,0.79082036,2975.1,2974.4,0.68083405]
[1644692115380,0.79082036,2975.1,2974.9,0.01018275]
[1644692116406,0.79082036,2975.1,2974.1,0.17145533]
[1644692116607,0.79082036,2975.1,2974.9,0.01018285]
[1644692117507,0.79082036,2975.1,2974.2,0.67834512]
[1644692117707,0.79082036,2975.1,2974.9,0.01018285]
[1644692118708,0.79082036,2975.1,2974.1,0.17145533]
[1644692119307,0.71846866,2974.5,2974.1,0.17145533]
[1644692119755,0.71846866,2974.5,2974.1,0.168]
[1644692119956,0.71846866,2974.5,2974.0,0.1681]
[1644692120356,3.0096,2975.2,2974.0,0.1681]
[1644692120556,3.0096,2975.2,2974.1,0.00345533]
[1644692120958,3.0096,2975.2,2974.2,0.168]
[1644692121163,3.0096,2975.2,2974.0,0.168]
[1644692121358,3.0096,2975.2,2974.1,0.00345533]
[1644692121556,0.87186221,2974.7,2974.1,0.00345533]
[1644692122360,3.0096,2975.2,2974.1,0.00345533]
[1644692122559,3.1776,2975.2,2974.3,0.01017769]
[1644692123400,0.79222268,2974.9,2974.3,0.86300385]
[1644692123602,0.79222268,2974.9,2974.3,0.85282616]
[1644692123805,0.79222268,2974.9,2974.1,0.00345533]
[1644692123806,0.79222268,2974.9,2974.6,0.01017699]
[1644692125911,0.79222268,2974.9,2974.1,0.00345533]
[1644692126112,0.79222268,2974.9,2974.6,0.01017699]
[1644692126316,1.3032236,2974.9,2974.6,0.01017699]
[1644692126713,1.2032236,2974.9,2974.6,0.01017699]
[1644692127164,1.2032236,2974.9,2974.1,0.00345533]
[1644692127352,1.2032236,2974.9,2974.6,0.01017699]
[1644692128357,1.2032236,2974.9,2974.2,0.168]
[1644692128558,1.2032236,2974.9,2974.6,0.01017699]
[1644692129559,1.2032236,2974.9,2974.2,0.168]
[1644692129758,1.2032236,2974.9,2974.6,0.01017699]
[1644692129958,0.51100092,2974.9,2974.6,0.01017699]
[1644692130758,0.51100092,2974.9,2974.2,0.168]
[1644692131004,0.51100092,2974.9,2974.6,0.01017699]
[1644692132008,0.51100092,2974.9,2974.4,0.80270878]
[1644692132206,0.51100092,2974.9,2974.6,0.01017699]
[1644692133109,0.51100092,2974.9,2974.4,0.80270878]
[1644692133311,0.51100092,2974.9,2974.6,0.01017699]
[1644692134312,0.51100092,2974.9,2973.9,0.00345533]
[1644692134509,0.51100092,2974.9,2974.6,0.01017699]
[1644692135454,0.51100092,2974.9,2974.1,0.71747169]
[1644692135857,0.51100092,2974.9,2974.6,0.01017699]
[1644692136455,3.37428,2974.8,2974.6,0.01017699]